fUSD/lending_fUSD_20250124
["ID","MTS","AMOUNT","RATE_DAILY","PERIOD"]
[350231213,1737719443864,-852.17,0.00018475,2]
[350231214,1737719443873,-500.0,0.00018475,2]
[350231215,1737719443882,-733.68,0.00018475,2]
[350231216,1737719443891,-500.0,0.00018475,2]
[350231217,1737719443900,-1704.49,0.00018475,2]
[350231218,1737719443909,-500.0,0.00018475,2]
[350231219,1737719443918,-500.0,0.00018475,2]
[350231220,1737719443927,-2075.44,0.00018475,2]
[350231221,1737719443936,-411.14050765,0.00018475,2]
[350231222,1737719443947,-88.85949235,0.00018475,2]
[350231223,1737719443956,-500.0,0.00018475,2]
[350231224,1737719443965,-228.33910765,0.00018475,2]
[350231226,1737719445513,-472.66089235,0.00018475,2]
[350231227,1737719445522,-500.0,0.00018475,2]
[350231228,1737719445532,-500.0,0.00018475,2]
[350231229,1737719445540,-1150.63,0.00018475,2]
[350231230,1737719445549,-500.0,0.00018475,2]
[350231231,1737719445558,-377.35309206,0.00018475,2]
[350231232,1737719445567,-500.0,0.00018475,2]
[350231233,1737719445576,-559.14,0.00018475,2]
[350231234,1737719445586,-840.59,0.00018475,2]
[350231235,1737719445595,-500.0,0.00018475,2]
[350231236,1737719445604,-500.0,0.00018475,2]
[350231237,1737719445613,-1539.28,0.00018475,2]
[350231238,1737719445623,-890.23,0.00018475,2]
[350231239,1737719445632,-500.0,0.00018475,2]
[350231240,1737719445641,-500.0,0.00018475,2]
[350231241,1737719445650,-2662.17,0.00018475,2]
[350231242,1737719445659,-500.0,0.00018475,2]
[350231243,1737719445668,-1166.2,0.00018475,2]
[350231244,1737719445677,-5629.55,0.00018475,2]
[350231245,1737719445686,-500.0,0.00018475,2]
[350231246,1737719445695,-500.0,0.00018475,2]
[350231247,1737719445704,-500.0,0.00018475,2]
[350231248,1737719445713,-306.65001559,0.00018475,2]
[350231249,1737719445725,-333.96998441,0.00018475,2]
[350231250,1737719445734,-2216.23,0.00018475,2]
[350231251,1737719445743,-563.87,0.00018475,2]
[350231252,1737719445752,-705.75,0.00018475,2]
[350231253,1737719445761,-500.0,0.00018475,2]
[350231254,1737719445770,-500.0,0.00018475,2]
[350231255,1737719445779,-500.0,0.00018475,2]
[350231256,1737719445788,-4424.9,0.00018475,2]
[350231257,1737719445797,-512.82377305,0.00018475,2]
[350231258,1737719445805,-500.0,0.00018475,2]
[350231259,1737719445814,-500.0,0.00018475,2]
[350231260,1737719445824,-619.37850632,0.00018475,2]
[350231261,1737719445833,-3144.71,0.00018475,2]
[350231263,1737719445843,-497.25268122,0.00018475,2]
[350231269,1737719446103,-2.74731878,0.00018475,2]
[350231270,1737719446119,-3836.05,0.00018475,2]
[350231271,1737719446128,-884.66,0.00018475,2]
[350231272,1737719446138,-1463.15282028,0.00018475,2]
[350231273,1737719446158,-280.57717972,0.00018475,2]
[350231274,1737719446169,-203.29282028,0.00018475,2]
[350231275,1737719921354,157.58,0.00010137,2]
[350231284,1737720631788,-1000.0,0.00017432,2]
[350231285,1737720631802,-163.9,0.00017432,2]
[350231286,1737720631818,-250.0,0.00017478,2]
[350231287,1737720631828,-285.0,0.00017488,2]
[350231288,1737720631840,-50.72774818,0.00017493,2]
[350231289,1737720632053,-284.11225182,0.00017493,2]
[350231290,1737720632066,-300.0,0.00017999,2]
[350231291,1737720632079,-1011.89190818,0.00018,2]
[350231292,1737720632096,-57192.64395322,0.00018,2]
[350231294,1737720632108,-247.17,0.00018067,2]
[350231296,1737720632120,-252.71,0.00018068,2]
[350231299,1737720632134,-251.2,0.00018068,2]
[350231300,1737720632146,-247.67,0.00018068,2]
[350231301,1737720632159,-251.4,0.00018068,2]
[350231302,1737720632172,-254.83,0.00018068,2]
[350231303,1737720632185,-251.96,0.00018068,2]
[350231304,1737720632197,-150.99,0.00018068,2]
[350231305,1737720632209,-7914.76,0.00018068,2]
[350231306,1737720632221,-1430.55,0.00018068,2]
[350231307,1737720632233,-900.0,0.00018068,2]
[350231309,1737720632245,-500.0,0.00018068,2]
[350231312,1737720632257,-32136.3,0.00018068,2]
[350231314,1737720632269,-499.99,0.00018068,2]
[350231316,1737720632281,-393.53,0.00018068,2]
[350231319,1737720632293,-3205.91,0.00018068,2]
[350231321,1737720632305,-150.99,0.00018068,2]
[350231323,1737720632317,-1381.87,0.00018068,2]
[350231325,1737720632329,-253.87,0.0001829,2]
[350231328,1737720632342,-9999.99,0.0001829,2]
[350231330,1737720632354,-9999.99,0.0001829,2]
[350231332,1737720632366,-999.99,0.0001829,2]
[350231334,1737720632377,-299.99,0.0001829,4]
[350231337,1737720632389,-8490.15752307,0.0001829,2]
[350231381,1737720637611,-201.36,0.00015602,2]
[350231382,1737720637622,-201.36,0.00017865,2]
[350231383,1737720637632,-1509.83247693,0.0001829,2]
[350231384,1737720637643,-2998.04,0.0001829,2]
[350231385,1737720637653,-1515.5,0.0001829,2]
[350231386,1737720637663,-9043.02,0.0001829,2]
[350231387,1737720637672,-4512.06113221,0.000183,2]
[350231388,1737720637684,-1116.82639086,0.00018325,2]
[350231389,1737720637697,-1275.74159201,0.00018325,2]
[350231390,1737720637708,-3219.88409916,0.00018329,2]
[350231391,1737720637721,-1527.05852388,0.00018329,2]
[350231392,1737720639117,-595.1638136,0.00018329,2]
[350231393,1737720639126,-1013.19486611,0.0001833,2]
[350231394,1737720639222,-1379.37311676,0.0001833,2]
[350231395,1737720639231,-2511.31736129,0.00018338,2]
[350231396,1737720639246,-3254.82321732,0.00018338,2]
[350231397,1737720639255,-5342.10643664,0.00018344,2]
[350231398,1737720639265,-2511.31736129,0.00018345,2]
[350231399,1737720639274,-5342.10643664,0.00018346,2]
[350231400,1737720639284,-2511.31736129,0.00018362,2]
[350231401,1737720639295,-35896.87082554,0.00018366,2]
[350231402,1737720639306,-2392.56798287,0.0001837,2]
[350231403,1737720639315,-5342.10643664,0.00018371,2]
[350231404,1737720639324,-7089.8688,0.00018375,2]
[350231405,1737720639333,-2511.31736129,0.00018381,2]
[350231406,1737720639343,-13630.36808493,0.00018383,2]
[350231407,1737720639354,-22266.50274061,0.00018383,2]
[350231408,1737720639363,-390.39829126,0.00018393,2]
[350231409,1737720639390,-1855.68172605,0.00018393,2]
[350231410,1737720639400,-3550.21677885,0.00018393,2]
[350231425,1737720639707,-867.51146052,0.00018393,2]
[350231426,1737720639918,-13253.22423378,0.00018393,2]
[350231427,1737720639929,-3073.13814854,0.00018393,2]
[350231428,1737720639940,-753.69950238,0.00018393,2]
[350231429,1737720639951,-12153.00068416,0.00018393,2]
[350231430,1737720639960,-3254.82321732,0.00018395,2]
[350231431,1737720639970,-3254.82321732,0.000184,2]
[350231432,1737720639979,-195.96,0.000184,2]
[350231433,1737720639988,-173.37831777,0.000184,2]
[350231434,1737720639998,-2389.76048576,0.000184,2]
[350231435,1737720640007,-154.62692049,0.000184,2]
[350231436,1737720640016,-239.27140601,0.000184,3]
[350231437,1737720640025,-2392.56798287,0.00018401,2]
[350231438,1737720640034,-3254.82321732,0.00018406,2]
[350231439,1737720640044,-2392.56798287,0.00018409,2]
[350231440,1737720640053,-200.0,0.00018413,2]
[350231441,1737720640063,-24344.52619024,0.00018422,2]
[350231442,1737720640084,-649.84901329,0.00018422,2]
[350231443,1737720640095,-544.34473846,0.00018422,2]
[350231444,1737720640107,-941.68,0.00018422,2]
[350231445,1737720640134,-1695.13221046,0.00018422,2]
[350231454,1737720642913,-2239.82826886,0.00018422,2]
[350231458,1737720645930,-651.60151001,0.00018422,2]
[350231459,1737720645942,-4829.90889422,0.00018422,2]
[350231460,1737720645952,-3254.82321732,0.00018427,2]
[350231461,1737720645961,-2457.26788846,0.00018433,2]
[350231462,1737720646029,-54.04947283,0.00018433,2]
[350231463,1737720646039,-3141.95144717,0.00018442,2]
[350231465,1737720646144,-2200.15498947,0.00018442,2]
[350231466,1737720646153,-200.67,0.00018451,2]
[350231467,1737720646163,-35896.87082554,0.00018452,2]
[350231468,1737720646172,-259.89,0.00018463,2]
[350231469,1737720646182,-259.89,0.00018464,2]
[350231470,1737720646191,-618.89,0.00018464,3]
[350231471,1737720646200,-876.52,0.00018472,2]
[350231472,1737720646210,-2117.44,0.00018473,2]
[350231473,1737720646219,-1043.38,0.00018473,2]
[350231474,1737720646228,-627.77003597,0.00018473,2]
[350231475,1737720646237,-752.17,0.00018473,2]
[350231476,1737720646246,-1358.021709,0.00018473,2]
[350231477,1737720646256,-700.01,0.00018473,2]
[350231478,1737720646265,-1139.39,0.00018473,2]
[350231479,1737720646274,-500.0,0.00018473,2]
[350231480,1737720646283,-500.0,0.00018473,2]
[350231481,1737720646293,-1530.3,0.00018473,2]
[350231482,1737720646303,-950.82309,0.00018473,2]
[350231483,1737720646313,-1680.71,0.00018473,2]
[350231484,1737720646322,-2623.55,0.00018473,2]
[350231485,1737720646331,-899.86,0.00018473,2]
[350231486,1737720646340,-540.37,0.00018473,2]
[350231487,1737720646350,-500.0,0.00018473,2]
[350231488,1737720646359,-500.0,0.00018473,2]
[350231489,1737720646369,-506.46,0.00018473,2]
[350231490,1737720646379,-838.36,0.00018473,2]
[350231491,1737720646388,-3731.7,0.00018473,2]
[350231492,1737720646397,-500.0,0.00018473,2]
[350231493,1737720646407,-889.59,0.00018473,2]
[350231494,1737720646416,-2871.96,0.00018473,2]
[350231495,1737720646426,-500.0,0.00018473,2]
[350231496,1737720646436,-1156.8,0.00018473,2]
[350231497,1737720646445,-1159.3,0.00018473,2]
[350231498,1737720646454,-1008.99,0.00018473,2]
[350231499,1737720646463,-1507.27,0.00018473,2]
[350231500,1737720646473,-676.34,0.00018473,2]
[350231501,1737720646483,-500.0,0.00018473,2]
[350231502,1737720646495,-1246.13,0.00018473,2]
[350231503,1737720646505,-1325.45,0.00018473,2]
[350231504,1737720646515,-522.97,0.00018473,2]
[350231505,1737720646524,-1671.08,0.00018473,2]
[350231506,1737720646535,-762.89,0.00018473,2]
[350231507,1737720646544,-500.0,0.00018473,2]
[350231508,1737720646555,-977.3,0.00018473,2]
[350231509,1737720646564,-500.0,0.00018473,2]
[350231510,1737720646575,-1510.25,0.00018473,2]
[350231511,1737720646585,-1842.65,0.00018473,2]
[350231512,1737720646594,-2823.86,0.00018473,2]
[350231513,1737720646603,-2510.21,0.00018473,2]
[350231514,1737720646613,-3275.69,0.00018473,2]
[350231515,1737720646622,-2528.9,0.00018473,2]
[350231516,1737720646631,-500.0,0.00018473,2]
[350231517,1737720646642,-1912.37,0.00018473,2]
[350231518,1737720646652,-1033.11,0.00018473,2]
[350231519,1737720646661,-1312.55,0.00018473,2]
[350231520,1737720646673,-500.0,0.00018473,2]
[350231521,1737720646682,-1416.52,0.00018473,2]
[350231522,1737720646691,-3749.29,0.00018473,2]
[350231523,1737720646700,-4780.05,0.00018473,2]
[350231524,1737720646709,-500.0,0.00018473,2]
[350231525,1737720646719,-882.33,0.00018473,2]
[350231526,1737720646728,-1147.62,0.00018473,2]
[350231527,1737720646738,-500.0,0.00018473,2]
[350231528,1737720646747,-500.0,0.00018473,2]
[350231529,1737720646757,-500.0,0.00018473,2]
[350231530,1737720646766,-588.65,0.00018473,2]
[350231531,1737720646775,-1445.51,0.00018473,2]
[350231532,1737720646785,-794.94,0.00018473,2]
[350231533,1737720646794,-648.08,0.00018473,2]
[350231534,1737720646806,-649.42,0.00018473,2]
[350231535,1737720646815,-500.0,0.00018473,2]
[350231536,1737720646824,-3248.7,0.00018473,2]
[350231537,1737720646834,-747.95,0.00018473,2]
[350231538,1737720646844,-586.45,0.00018473,2]
[350231539,1737720646853,-406.12575334,0.00018473,2]
[350231540,1737720646863,-451.56219216,0.00018473,2]
[350231541,1737720646874,-500.0,0.00018473,2]
[350231542,1737720646883,-164.965747,0.00018473,2]
[350231543,1737720646892,-500.0,0.00018473,2]
[350231544,1737720646902,-116786.55668609,0.00018474,2]
[350231545,1737720646911,-252.84,0.00018474,2]
[350231546,1737720646921,-284.527,0.00018474,2]
[350231547,1737720646930,-500.0,0.00018474,2]
[350231548,1737720646942,-500.0,0.00018474,2]
[350231549,1737720646952,-500.0,0.00018474,2]
[350231550,1737720646961,-500.0,0.00018474,2]
[350231551,1737720646971,-500.0,0.00018474,2]
[350231552,1737720646980,-500.0,0.00018474,2]
[350231553,1737720646990,-500.0,0.00018474,2]
[350231554,1737720647000,-500.0,0.00018474,2]
[350231555,1737720647010,-500.0,0.00018474,2]
[350231556,1737720647020,-500.0,0.00018474,2]
[350231557,1737720647031,-500.0,0.00018474,2]
[350231558,1737720647040,-500.0,0.00018474,2]
[350231559,1737720647052,-500.0,0.00018474,2]
[350231560,1737720647062,-500.0,0.00018474,2]
[350231561,1737720647073,-719.22,0.00018474,2]
[350231562,1737720647082,-500.0,0.00018474,2]
[350231563,1737720647092,-500.0,0.00018474,2]
[350231564,1737720647102,-1002.2,0.00018474,2]
[350231565,1737720647112,-532.89,0.00018474,2]
[350231566,1737720647122,-675.98,0.00018474,2]
[350231567,1737720647132,-247.77825577,0.00018474,2]
[350231568,1737720647142,-277.36094024,0.00018474,2]
[350231569,1737720647151,-500.0,0.00018474,2]
[350231570,1737720647161,-500.0,0.00018474,2]
[350231571,1737720647170,-500.0,0.00018474,2]
[350231572,1737720647180,-500.0,0.00018474,2]
[350231573,1737720647189,-184.02848752,0.00018474,2]
[350231574,1737720647199,-500.0,0.00018474,2]
[350231575,1737720647208,-500.0,0.00018474,2]
[350231576,1737720647218,-506.19,0.00018474,2]
[350231577,1737720647227,-500.0,0.00018474,2]
[350231578,1737720647237,-500.0,0.00018474,2]
[350231579,1737720647246,-999.0,0.00018474,2]
[350231580,1737720647256,-999.0,0.00018474,2]
[350231581,1737720647265,-999.0,0.00018474,2]
[350231582,1737720647275,-999.0,0.00018474,2]
[350231583,1737720647284,-999.0,0.00018474,2]
[350231584,1737720647294,-999.0,0.00018474,2]
[350231585,1737720647305,-999.0,0.00018474,2]
[350231586,1737720647315,-999.0,0.00018474,2]
[350231587,1737720647324,-999.0,0.00018474,2]
[350231588,1737720647334,-999.0,0.00018474,2]
[350231589,1737720647346,-999.0,0.00018474,2]
[350231590,1737720647355,-224.35711949,0.00018474,2]
[350231591,1737720647367,-999.0,0.00018474,2]
[350231592,1737720647376,-999.0,0.00018474,2]
[350231593,1737720647385,-999.0,0.00018474,2]
[350231594,1737720647395,-999.0,0.00018474,2]
[350231595,1737720647405,-999.0,0.00018474,2]
[350231596,1737720647415,-999.0,0.00018474,2]
[350231597,1737720647425,-999.0,0.00018474,2]
[350231598,1737720647434,-999.0,0.00018474,2]
[350231599,1737720647443,-1019.0,0.00018474,2]
[350231600,1737720647454,-500.0,0.00018474,2]
[350231601,1737720647464,-1183.83,0.00018474,2]
[350231602,1737720647473,-500.0,0.00018474,2]
[350231603,1737720647483,-500.0,0.00018474,2]
[350231604,1737720647493,-500.0,0.00018474,2]
[350231605,1737720647504,-607.76,0.00018474,2]
[350231606,1737720647516,-568.55,0.00018474,2]
[350231607,1737720647526,-500.0,0.00018474,2]
[350231608,1737720647535,-500.0,0.00018474,2]
[350231609,1737720647545,-500.0,0.00018474,2]
[350231610,1737720647555,-500.0,0.00018474,2]
[350231611,1737720647564,-772.2,0.00018474,2]
[350231612,1737720647574,-788.67,0.00018474,2]
[350231613,1737720647585,-690.01,0.00018474,2]
[350231614,1737720647595,-865.1,0.00018474,2]
[350231615,1737720647605,-500.0,0.00018474,2]
[350231616,1737720647614,-500.0,0.00018474,2]
[350231617,1737720647623,-500.0,0.00018474,2]
[350231618,1737720647633,-500.0,0.00018474,2]
[350231619,1737720647642,-500.0,0.00018474,2]
[350231620,1737720647651,-500.0,0.00018474,2]
[350231621,1737720647660,-500.0,0.00018474,2]
[350231622,1737720647669,-567.11,0.00018474,2]
[350231623,1737720647679,-500.0,0.00018474,2]
[350231624,1737720647689,-500.0,0.00018474,2]
[350231625,1737720647698,-500.0,0.00018474,2]
[350231626,1737720647707,-823.08,0.00018474,2]
[350231627,1737720647717,-800.52,0.00018474,2]
[350231628,1737720647726,-421.69,0.00018474,2]
[350231629,1737720647736,-500.0,0.00018474,2]
[350231630,1737720647745,-517.96,0.00018474,2]
[350231631,1737720647755,-500.0,0.00018474,2]
[350231632,1737720647765,-500.0,0.00018474,2]
[350231633,1737720647774,-857.0,0.00018474,2]
[350231634,1737720647784,-500.0,0.00018474,2]
[350231635,1737720647794,-500.0,0.00018474,2]
[350231636,1737720647804,-500.0,0.00018474,2]
[350231637,1737720647814,-500.0,0.00018474,2]
[350231638,1737720647824,-500.0,0.00018474,2]
[350231639,1737720647835,-500.0,0.00018474,2]
[350231640,1737720647844,-500.0,0.00018474,2]
[350231641,1737720647854,-500.0,0.00018474,2]
[350231642,1737720647864,-500.0,0.00018474,2]
[350231643,1737720647874,-500.0,0.00018474,2]
[350231644,1737720647883,-648.08,0.00018474,2]
[350231645,1737720647894,-945.86,0.00018474,2]
[350231646,1737720647903,-500.0,0.00018474,2]
[350231647,1737720647914,-500.0,0.00018474,2]
[350231648,1737720647925,-272.10812297,0.00018474,2]
[350231649,1737720647936,-500.0,0.00018474,2]
[350231650,1737720647945,-500.0,0.00018474,2]
[350231651,1737720647955,-500.0,0.00018474,2]
[350231652,1737720647965,-500.0,0.00018474,2]
[350231653,1737720647976,-500.0,0.00018474,2]
[350231654,1737720647986,-792.24,0.00018474,2]
[350231655,1737720647997,-579.82,0.00018474,2]
[350231656,1737720648007,-500.0,0.00018474,2]
[350231657,1737720648017,-500.0,0.00018474,2]
[350231658,1737720648027,-500.0,0.00018474,2]
[350231659,1737720648037,-619.91834863,0.00018474,2]
[350231660,1737720648047,-500.0,0.00018474,2]
[350231661,1737720648058,-500.0,0.00018474,2]
[350231662,1737720648068,-500.0,0.00018474,2]
[350231663,1737720648078,-500.0,0.00018474,2]
[350231664,1737720648088,-500.0,0.00018474,2]
[350231665,1737720648097,-936.46,0.00018474,2]
[350231666,1737720648107,-500.0,0.00018474,2]
[350231667,1737720648117,-500.0,0.00018474,2]
[350231668,1737720648126,-500.0,0.00018474,2]
[350231669,1737720648137,-500.0,0.00018474,2]
[350231670,1737720648147,-1134.15,0.00018474,2]
[350231671,1737720648157,-500.0,0.00018474,2]
[350231672,1737720648167,-500.0,0.00018474,2]
[350231673,1737720648177,-656.06,0.00018474,2]
[350231674,1737720648187,-500.0,0.00018474,2]
[350231675,1737720648198,-500.0,0.00018474,2]
[350231676,1737720648208,-500.0,0.00018474,2]
[350231677,1737720648218,-857.2,0.00018474,2]
[350231678,1737720648228,-500.0,0.00018474,2]
[350231679,1737720648237,-428.1816931,0.00018474,2]
[350231680,1737720648247,-766.09,0.00018474,2]
[350231681,1737720648256,-1026.34,0.00018474,2]
[350231682,1737720648266,-500.0,0.00018474,2]
[350231683,1737720648430,-500.0,0.00018474,2]
[350231684,1737720648444,-500.0,0.00018474,2]
[350231685,1737720648455,-500.0,0.00018474,2]
[350231686,1737720648465,-267.57208815,0.00018474,2]
[350231687,1737720648475,-500.0,0.00018474,2]
[350231688,1737720648485,-500.0,0.00018474,2]
[350231689,1737720648500,-500.0,0.00018474,2]
[350231690,1737720648509,-168.0038135,0.00018474,2]
[350231691,1737720648519,-482.74999996,0.00018474,2]
[350231692,1737720648529,-500.0,0.00018474,2]
[350231693,1737720648539,-1222.04,0.00018474,2]
[350231694,1737720648549,-500.0,0.00018474,2]
[350231695,1737720648559,-500.0,0.00018474,2]
[350231696,1737720648569,-714.81,0.00018474,2]
[350231697,1737720648579,-500.0,0.00018474,2]
[350231698,1737720648590,-500.0,0.00018474,2]
[350231699,1737720648599,-770.98,0.00018474,2]
[350231700,1737720648609,-514.09004656,0.00018474,2]
[350231701,1737720648618,-500.0,0.00018474,2]
[350231702,1737720648628,-500.0,0.00018474,2]
[350231703,1737720648638,-500.0,0.00018474,2]
[350231704,1737720648647,-500.0,0.00018474,2]
[350231705,1737720648656,-500.0,0.00018474,2]
[350231706,1737720648665,-511.21,0.00018474,2]
[350231707,1737720648675,-500.0,0.00018474,2]
[350231708,1737720648685,-900.23,0.00018474,2]
[350231709,1737720648694,-500.0,0.00018474,2]
[350231710,1737720648704,-500.0,0.00018474,2]
[350231711,1737720648713,-500.0,0.00018474,2]
[350231712,1737720648723,-808.86,0.00018474,2]
[350231713,1737720648733,-1135.42,0.00018474,2]
[350231714,1737720648742,-680.63,0.00018474,2]
[350231715,1737720648751,-500.0,0.00018474,2]
[350231716,1737720648760,-870.71,0.00018474,2]
[350231717,1737720648769,-519.65,0.00018474,2]
[350231718,1737720648779,-759.35,0.00018474,2]
[350231719,1737720648788,-500.0,0.00018474,2]
[350231720,1737720648797,-500.0,0.00018474,2]
[350231721,1737720648808,-500.0,0.00018474,2]
[350231722,1737720648817,-500.0,0.00018474,2]
[350231723,1737720648827,-500.0,0.00018474,2]
[350231724,1737720648837,-1119.38,0.00018474,2]
[350231725,1737720648846,-730.59,0.00018474,2]
[350231726,1737720648855,-500.0,0.00018474,2]
[350231727,1737720648865,-500.0,0.00018474,2]
[350231728,1737720648874,-993.11,0.00018474,2]
[350231729,1737720648884,-265.8095371,0.00018474,2]
[350231730,1737720648893,-612.86,0.00018474,2]
[350231731,1737720648902,-500.0,0.00018474,2]
[350231732,1737720648911,-500.0,0.00018474,2]
[350231733,1737720648921,-151.0,0.00018474,2]
[350231734,1737720648931,-500.0,0.00018474,2]
[350231735,1737720648940,-500.0,0.00018474,2]
[350231736,1737720648950,-500.0,0.00018474,2]
[350231737,1737720648959,-500.0,0.00018474,2]
[350231738,1737720648969,-500.0,0.00018474,2]
[350231739,1737720648979,-500.0,0.00018474,2]
[350231740,1737720648988,-500.0,0.00018474,2]
[350231741,1737720648997,-500.0,0.00018474,2]
[350231742,1737720649007,-500.0,0.00018474,2]
[350231743,1737720649021,-1512.0,0.00018474,2]
[350231744,1737720649030,-500.0,0.00018474,2]
[350231745,1737720649040,-2239.03,0.00018474,2]
[350231746,1737720649049,-151.0,0.00018474,2]
[350231747,1737720649061,-500.0,0.00018474,2]
[350231748,1737720649070,-500.0,0.00018474,2]
[350231749,1737720649080,-610.85,0.00018474,2]
[350231750,1737720649090,-151.0,0.00018474,2]
[350231751,1737720649100,-500.0,0.00018474,2]
[350231752,1737720649109,-601.54,0.00018474,2]
[350231753,1737720649119,-500.0,0.00018474,2]
[350231754,1737720649128,-2561.59,0.00018474,2]
[350231755,1737720649137,-500.0,0.00018474,2]
[350231756,1737720649147,-1210.67,0.00018474,2]
[350231757,1737720649157,-500.0,0.00018474,2]
[350231758,1737720649167,-1810.11,0.00018474,2]
[350231759,1737720649177,-500.0,0.00018474,2]
[350231760,1737720649186,-5123.13,0.00018474,2]
[350231761,1737720649195,-500.0,0.00018474,2]
[350231762,1737720649205,-500.0,0.00018474,2]
[350231763,1737720649214,-500.0,0.00018474,2]
[350231764,1737720649224,-5136.02,0.00018474,2]
[350231765,1737720649233,-151.0,0.00018474,2]
[350231766,1737720649242,-2746.46,0.00018474,2]
[350231767,1737720649252,-151.0,0.00018474,2]
[350231768,1737720649262,-500.0,0.00018474,2]
[350231769,1737720649271,-737.35,0.00018474,2]
[350231770,1737720649281,-151.0,0.00018474,2]
[350231771,1737720649291,-1276.38,0.00018474,2]
[350231772,1737720649303,-154.528261,0.00018474,2]
[350231773,1737720649312,-151.0,0.00018474,2]
[350231774,1737720649322,-500.0,0.00018474,2]
[350231775,1737720649332,-500.0,0.00018474,2]
[350231776,1737720649341,-677.29,0.00018474,2]
[350231777,1737720649351,-151.0,0.00018474,2]
[350231778,1737720649360,-244.795403,0.00018474,2]
[350231779,1737720649370,-2035.7,0.00018474,2]
[350231780,1737720649380,-151.0,0.00018474,2]
[350231781,1737720649389,-692.63,0.00018474,2]
[350231782,1737720649399,-999.16,0.00018474,2]
[350231783,1737720649409,-500.0,0.00018474,2]
[350231784,1737720649418,-151.0,0.00018474,2]
[350231785,1737720649428,-556.68,0.00018474,2]
[350231786,1737720649437,-151.0,0.00018474,2]
[350231787,1737720649446,-151.0,0.00018474,2]
[350231788,1737720649456,-593.79,0.00018474,2]
[350231789,1737720649465,-500.0,0.00018474,2]
[350231790,1737720649475,-500.0,0.00018474,2]
[350231791,1737720649484,-685.12,0.00018474,2]
[350231792,1737720649495,-500.0,0.00018474,2]
[350231793,1737720649505,-500.0,0.00018474,2]
[350231794,1737720649515,-359.80933509,0.00018474,2]
[350231795,1737720649525,-500.0,0.00018474,2]
[350231796,1737720649535,-500.0,0.00018474,2]
[350231797,1737720649544,-500.0,0.00018474,2]
[350231798,1737720649555,-909.23,0.00018474,2]
[350231799,1737720649564,-5512.26,0.00018474,2]
[350231800,1737720649573,-151.0,0.00018474,2]
[350231801,1737720649584,-500.0,0.00018474,2]
[350231802,1737720649593,-500.0,0.00018474,2]
[350231803,1737720649603,-500.0,0.00018474,2]
[350231804,1737720649613,-577.06,0.00018474,2]
[350231805,1737720649623,-1190.19,0.00018474,2]
[350231806,1737720649632,-2170.78,0.00018474,2]
[350231807,1737720649642,-378.48066491,0.00018474,2]
[350231808,1737720649651,-500.0,0.00018474,2]
[350231809,1737720649661,-500.0,0.00018474,2]
[350231810,1737720649670,-500.0,0.00018474,2]
[350231811,1737720649679,-500.0,0.00018474,2]
[350231812,1737720649689,-500.0,0.00018474,2]
[350231813,1737720649699,-151.0,0.00018474,2]
[350231814,1737720649708,-500.0,0.00018474,2]
[350231815,1737720649718,-1434.89,0.00018474,2]
[350231816,1737720649727,-250.394593,0.00018474,2]
[350231817,1737720649737,-3099.24,0.00018474,2]